Cogmind - Beta 16 @@@ ROGUE MODE // 2025.12.03 @ 14:05:40 Player: Lazz Result: Destroyed by Y-45 Defender with Heavy Assault Rifle Performance ------------- Evolutions (2) 1000 Regions Visited (5) 1000 Robots Destroyed (32) 160 Value Destroyed (1122) 1122 Prototype IDs (1) 20 Alien Tech Used (0) 0 Bonus (304) 304 TOTAL SCORE: 3606 Bonus ------- High Alert Combat Kills 26 Follower Combat Kills 78 Entered Garrisons 200 Cogmind --------- Core Integrity 0/550 Matter 273/300 Energy 10/100 System Corruption 4% Temperature Hot (211) Movement Flying (120) Ox1 Location -8/Materials Parts ------- > --- POWER (1) -------- (None) > --- PROPULSION (2) --- Flight Unit > --- UTILITY (6) ------ Improved Terrain Scanner Reaction Control System System Shield > --- WEAPON (2) ------- Impact Mace Impact Mace > --- INVENTORY (5) ---- Improved Ion Engine Armored Wheel Heat Sink Impact Mace Peak State ------------ > --- POWER ------------ (None) > --- PROPULSION ------- Flight Unit Flight Unit > --- UTILITY ---------- Improved Terrain Scanner Reaction Control System System Shield > --- WEAPON ----------- Impact Mace Impact Mace > --- INVENTORY -------- Improved Ion Engine Armored Wheel Heat Sink Impact Mace [Rating: 22] Favorites ----------- Power Improved Ion Engine Engine Improved Ion Engine Power Core Light Nuclear Core Propulsion Wheel Wheel Wheel Flight Unit Flight Unit Utility Small Storage Unit Device Improved Terrain Scanner Storage Small Storage Unit Hackware System Shield Protection Hardened Light Armor Plating Weapon Small Laser Energy Gun Small Laser Ballistic Gun Assault Rifle Impact Weapon Impact Mace Slashing Weapon Axe Build | -11 -10 -10 -8 -8 -8 ------- Run | Yrd Mat Sub Mat Gar Mat Slots Evolved 4 | . . . 4 . . Power . | . . . . . . Propulsion . | . . . . . . Utility 4 | . . . 4 . . Weapon . | . . . . . . Parts Attached 39 | 6 . 1 4 16 12 Power 3 | . . . . 2 1 Engine 1 | . . . . 1 . Core 2 | . . . . 1 1 Reactor . | . . . . . . Propulsion 9 | 2 . . . 3 4 Treads . | . . . . . . Leg . | . . . . . . Wheel 6 | 2 . . . 3 1 Hover . | . . . . . . Flight 3 | . . . . . 3 Utility 13 | 2 . . 4 4 3 Device 5 | 1 . . 1 1 2 Storage 1 | 1 . . . . . Processor . | . . . . . . Hackware 1 | . . . . . 1 Protection 6 | . . . 3 3 . Artifact . | . . . . . . Weapon 14 | 2 . 1 . 7 4 Energy Gun 5 | 1 . . . 4 . Energy Cannon . | . . . . . . Ballistic Gun 5 | 1 . 1 . 3 . Ballistic Cannon . | . . . . . . Launcher . | . . . . . . Special Weapon . | . . . . . . Impact Weapon 2 | . . . . . 2 Slashing Weapon 2 | . . . . . 2 Piercing Weapon . | . . . . . . Special Melee Weapon . | . . . . . . Unidentified Prototypes 1 | . . . . . 1 Parts Lost 22 | . . . . 19 3 Power 2 | . . . . 2 . Propulsion 6 | . . . . 4 2 Utility 8 | . . . . 8 . Weapon 6 | . . . . 5 1 Highest Loss Streak 6 | . . . . 6 2 To Critical Strikes . | . . . . . . Average Backups 6 | 4 7 7 5 6 5 Power . | . . . . . . Propulsion 2 | 2 2 2 3 3 2 Utility 1 | . 3 4 . 1 1 Weapon 1 | 1 2 1 1 . 1 Tool/Special . | . . . . . . Unused Backups 9 | . 3 2 . . 4 Power 1 | . . . . . 1 Propulsion 2 | . 2 . . . . Utility 2 | . 1 . . . 1 Weapon 4 | . . 2 . . 2 Tool/Special . | . . . . . . Average Slot Usage (%) 74 | . 85 85 81 76 46 Engine 2 | . . . . 4 . Wheel 16 | . 28 28 18 14 2 Flight 1 | . . . . . 12 Device 13 | . 14 14 16 14 6 Storage 9 | . 14 14 9 9 3 Protection 10 | . . . 19 17 . Energy Gun 9 | . 14 14 9 9 3 Ballistic Gun 8 | . 14 14 9 6 3 Peak Build Rating 22 | 7 7 9 17 21 22 Average Rating 12 | 4 6 7 16 15 14 On Entrance 8 | . 7 7 9 17 10 Avg Prop Armor Cover (%) . | . . . . . . Naked Turns . | . . . . . . Heaviest Build 36 | 9 9 10 26 36 13 Greatest Support 30 | 26 26 26 26 30 12 Greatest Overweight (x) 4 | 1 . . . 4 1 Average Overweight (x) . | . . . . 1 . Largest Inventory Capacity 8 | 8 8 8 8 8 8 Average Capacity 7 | 7 8 8 8 8 6 Most Carried 8 | 8 8 8 8 8 7 Average Carried 6 | 4 7 7 4 6 5 Final Capacity 8 | 8 8 8 8 8 5 Final Carried 8 | 8 8 8 5 7 4 Class Distribution -------------------- 58% | Mutant 41% | Scavenger-Mutant Dominant Class ---------------- Mutant | -10/Materials Mutant | -10/Subcaves Mutant | -8/Materials Scavenger-Mutant | -8/Garrison Mutant | -8/Materials Resources | -11 -10 -10 -8 -8 -8 ----------- Run | Yrd Mat Sub Mat Gar Mat Matter Collected 1077 | 296 . 26 . 616 139 Remotely . | . . . . . . Salvage Created 1183 | 178 . 105 . 735 165 Parts 61 | 14 . 4 . 34 9 Haulers Intercepted . | . . . . . . Recyclers Shooed . | . . . . . . Parts Field Recycled . | . . . . . . Retrieved Matter . | . . . . . . Parts Self-Destructed . | . . . . . . Prevented . | . . . . . . Parts Restored . | . . . . . . Kills | -11 -10 -10 -8 -8 -8 ------- Run | Yrd Mat Sub Mat Gar Mat Combat Hostiles Destroyed 22 | . . 2 . 18 2 Melee 1 | . . . . . 1 Guns 19 | . . 2 . 16 1 Classes Destroyed 10 | 2 . 1 . 5 2 Worker 1 | . . . . . 1 Tunneler 6 | 4 . . . . 2 Recycler 1 | 1 . . . . . Watcher 2 | . . . . . 2 Swarmer 6 | . . . . 5 1 Grunt 5 | . . . . 5 . Sentry 6 | . . . . 5 1 Hunter 1 | . . . . 1 . Programmer 2 | . . . . 2 . Subdweller 2 | . . 2 . . . Best Kill Streak 5 | 5 . 2 . 3 2 Combat Bots Only 3 | . . 2 . 3 1 Max Kills in Single Turn 1 | 1 . 1 . 1 1 Gunslinging . | . . . . . . Exploded . | . . . . . . Melee 1 | . . . . . 1 Uniques/NPCs Destroyed . | . . . . . . Combat | -11 -10 -10 -8 -8 -8 -------- Run | Yrd Mat Sub Mat Gar Mat Hostile Shots Fired 217 | . . 16 . 178 23 Missed 58 | . . 2 . 44 12 Hits 159 | . . 14 . 134 11 Projectile 159 | . . 14 . 134 11 Critical Strikes 9 | . . . . 9 . Damage Taken 2503 | . . 288 . 2091 124 Core 659 | . . 92 . 533 34 Absorbed by Shields 96 | . . . . 96 . Core Remaining (%) 81 | 100 . 63 . . . Volleys Fired 127 | 12 . 4 . 106 5 Largest 2 | 2 . 2 . 2 2 Hottest 112 | 60 . 68 . 112 97 Shots Fired 204 | 24 . 8 . 162 10 Gun 204 | 24 . 8 . 162 10 Cannon . | . . . . . . Launcher . | . . . . . . Special . | . . . . . . Kinetic 81 | 12 . 4 . 60 5 Thermal 123 | 12 . 4 . 102 5 Explosive . | . . . . . . Electromagnetic . | . . . . . . Robot Hit Streak 14 | 5 . 7 . 14 6 Robot Miss Streak 4 | 2 . 1 . 4 1 Penetration Max 1 | . . . . 1 . Secondary Targets 2 | . . . . 2 . Max Gunslinging Chain 1 | . . . . 1 . Shots Hit Robots 144 | 14 . 7 . 107 16 Core Hits 50 | 6 . 3 . 36 5 Critical Kills 3 | . . . . 1 2 Critical Parts Destroyed 2 | . . . . 1 1 Critical Strikes 14 | . . . . 11 3 Burn 9 | . . . . 9 . Destroy 4 | . . . . 2 2 Smash 1 | . . . . . 1 Melee Attacks 14 | . . . . . 14 Impact 9 | . . . . . 9 Slashing 5 | . . . . . 5 Piercing . | . . . . . . Sneak Attacks 3 | . . . . . 3 Combat Hostiles . | . . . . . . Follow-up Attacks 2 | . . . . . 2 Damage Inflicted 2729 | 162 . 67 . 1892 608 Guns 2287 | 162 . 67 . 1892 166 Cannons . | . . . . . . Explosions . | . . . . . . Melee 442 | . . . . . 442 Ramming . | . . . . . . Kinetic 976 | 75 . 46 . 783 72 Thermal 1311 | 87 . 21 . 1109 94 Explosive . | . . . . . . Electromagnetic . | . . . . . . Impact 313 | . . . . . 313 Slashing 129 | . . . . . 129 Piercing . | . . . . . . Highest Corruption 4 | . . . . 4 4 Average Corruption 3 | . . . . 3 4 Corruption Purged . | . . . . . . Corruption Blocked . | . . . . . . Effects 8 | . . . . 4 4 Message Errors 3 | . . . . 1 2 Matter Fused 2 | . . . . 2 . Heat Flow Errors 1 | . . . . . 1 Data Loss (minor) 1 | . . . . 1 . Data Loss (major) 1 | . . . . . 1 Overload Shots . | . . . . . . Overflow Damage 149 | . . . . . 149 Projectiles . | . . . . . . Explosions . | . . . . . . Melee 149 | . . . . . 149 Knockbacks . | . . . . . . Impact . | . . . . . . Kinetic . | . . . . . . Secondary . | . . . . . . Self-Inflicted Damage . | . . . . . . Shots . | . . . . . . Rammed . | . . . . . . Targets Rammed . | . . . . . . Kicked . | . . . . . . Crushed . | . . . . . . Highest Temperature 769 | . . . . 769 201 Average Temperature 232 | . . . . 243 15 Received Heat Transfer 774 | . . 36 . 720 18 Effects 43 | . . . . 43 . Shutdowns 9 | . . . . 9 . Energy Bleed 2 | . . . . 2 . Interference 7 | . . . . 7 . Matter Decay 5 | . . . . 5 . Short Circuit 3 | . . . . 3 . Damage (minor) 7 | . . . . 7 . Damage (major) 8 | . . . . 8 . Damage (core) 2 | . . . . 2 . Siege Activations . | . . . . . . Martial Activations . | . . . . . . Shielding Activations . | . . . . . . Robots Disrupted . | . . . . . . Combat Hostiles . | . . . . . . Robots Corrupted 1 | . . . . . 1 Combat Hostiles . | . . . . . . Parts Fried 1 | . . . . . 1 Impact Corruptions 6 | . . . . . 6 Robots Melted 2 | . . . . 2 . Combat Hostiles 2 | . . . . 2 . Parts Melted 10 | . . . . 10 . Heat Transferred 3492 | 200 . 50 . 3057 185 Parts Sabotaged . | . . . . . . Parts Stolen . | . . . . . . Parts Stripped . | . . . . . . Power Chain Reactions . | . . . . . . Alert | -11 -10 -10 -8 -8 -8 ------- Run | Yrd Mat Sub Mat Gar Mat Maximum Alert Level 2 | . . . . 2 1 Low Security (%) 48 | 100 100 . 100 35 30 Level 1 41 | . . . . 50 69 Level 2 9 | . . . . 14 . Level 3 . | . . . . . . Level 4 . | . . . . . . Level 5 . | . . . . . . High Security . | . . . . . . Max Security . | . . . . . . Peak Influence 457 | 15 . . . 457 242 Initial 222 | . . . . . 222 Average 188 | 3 . . . 250 209 Influence Increases 847 | 25 . . . 707 115 Destroy 0b10 Robot/C 440 | . . . . 400 40 Destroy 0b10 Robot/NC 50 | 25 . . . . 25 Destroy Leader 44 | . . . . 30 14 Allied During Kill 11 | . . . . 11 . Successful Hack 20 | . . . . 16 4 Anti-Garrison Action 100 | . . . . 100 . Destroy Structure 2 | . . . . . 2 Partial Spotted 15 | . . . . 15 . Lose Combat Pursuer 165 | . . . . 135 30 Influence Decreases 650 | 25 . . . 250 375 Entered New Map 235 | . . . . . 235 Time Decay 135 | 25 . . . . 110 Lost Part 220 | . . . . 190 30 Lost Ally 60 | . . . . 60 . Squads Dispatched 1 | . 1 . . . . Investigation . | . . . . . . Extermination . | . . . . . . Reinforcement 1 | . 1 . . . . Assault . | . . . . . . Garrison . | . . . . . . Intercept . | . . . . . . Searches Triggered . | . . . . . . Construction Impeded . | . . . . . . Haulers Reinforced . | . . . . . . Active Scanning Responses . | . . . . . . Cargo Convoy Interrupts . | . . . . . . Stealth | -11 -10 -10 -8 -8 -8 --------- Run | Yrd Mat Sub Mat Gar Mat Distress Signals 4 | . 1 . . . 3 Communications Jammed . | . . . . . . Distress Signals . | . . . . . . Times Spotted 42 | . . 6 . 26 10 Peak Tracking Total 6 | . . 3 . 6 5 Tactical Retreats 5 | . . . . 4 1 Traps | -11 -10 -10 -8 -8 -8 ------- Run | Yrd Mat Sub Mat Gar Mat Traps Triggered 9 | . . . . 9 . Indirectly . | . . . . . . Trap Hack Attempts . | . . . . . . Triggered . | . . . . . . Disarmed . | . . . . . . Reprogrammed . | . . . . . . Reused . | . . . . . . Traps Extracted . | . . . . . . Installed . | . . . . . . Triggered . | . . . . . . Machines | -11 -10 -10 -8 -8 -8 ---------- Run | Yrd Mat Sub Mat Gar Mat Machines Disabled 1 | . . . . 1 . Max in Single Turn 1 | . . . . 1 . Garrison Relay 1 | . . . . 1 . Machines Repaired . | . . . . . . Machines Dismantled . | . . . . . . Machines Sabotaged . | . . . . . . Overloaded Fab Kills . | . . . . . . Hacking | -11 -10 -10 -8 -8 -8 --------- Run | Yrd Mat Sub Mat Gar Mat Machines Accessed 7 | . . . 1 3 3 Terminals 6 | . . . . 3 3 Fabricators . | . . . . . . Repair Stations . | . . . . . . Recycling Units . | . . . . . . Scanalyzers . | . . . . . . Garrison Access 1 | . . . 1 . . Total Hacks 15 | . . . 1 6 8 Successful 6 | . . . 1 2 3 Failed 9 | . . . . 4 5 Catastrophic 2 | . . . . 2 . Database Lockouts . | . . . . . . Manual 3 | . . . . . 3 Terminals 14 | . . . . 6 8 Fabricators . | . . . . . . Repair Stations . | . . . . . . Recycling Units . | . . . . . . Scanalyzers . | . . . . . . Garrison Access 1 | . . . 1 . . Terminal Hacks 5 | . . . . 2 3 Emergency Access Points 2 | . . . . 1 1 Locate Traps 1 | . . . . . 1 Dispatch Records 1 | . . . . . 1 Security Stations 1 | . . . . 1 . Fabricator Hacks . | . . . . . . Repair Station Hacks . | . . . . . . Recycling Unit Hacks . | . . . . . . Scanalyzer . | . . . . . . Garrison Access Hacks 1 | . . . 1 . . Unlock Access 1 | . . . 1 . . Unauthorized Hacks . | . . . . . . Terminals . | . . . . . . Fabricators . | . . . . . . Repair Stations . | . . . . . . Recycling Units . | . . . . . . Scanalyzers . | . . . . . . Garrison Access . | . . . . . . Data Cores Recovered . | . . . . . . Used . | . . . . . . Hacking Detections 5 | . . . . 2 3 Full Trace Events 1 | . . . . 1 . Feedback Events . | . . . . . . Feedback Blocked . | . . . . . . Robot Schematics Acquired . | . . . . . . Robots Built . | . . . . . . Authchips . | . . . . . . Time . | . . . . . . Total Robot Build Rating . | . . . . . . Part Schematics Acquired . | . . . . . . Parts Built . | . . . . . . Authchips . | . . . . . . Time . | . . . . . . Total Part Build Rating . | . . . . . . Part Studies Acquired . | . . . . . . Parts Repaired . | . . . . . . Time . | . . . . . . Parts Recycled . | . . . . . . Recycled Matter . | . . . . . . Retrieved Matter . | . . . . . . Retrieved Components . | . . . . . . Parts Scanalyzed . | . . . . . . Part Schematics Acquired . | . . . . . . Parts Damaged . | . . . . . . Bothacking | -11 -10 -10 -8 -8 -8 ------------ Run | Yrd Mat Sub Mat Gar Mat Used RIF Installer . | . . . . . . Robots Hacked . | . . . . . . Non-combat . | . . . . . . Combat . | . . . . . . Robot Hacks Applied . | . . . . . . Relay Couplers Released 3 | . . . . 3 . Machine Destruction 3 | . . . . 3 . Fabnet Peak Effective % . | . . . . . . Robots Rewired 3 | . . . . 3 . Allies Hacked . | . . . . . . Hacks Repelled . | . . . . . . Allies | -11 -10 -10 -8 -8 -8 -------- Run | Yrd Mat Sub Mat Gar Mat Total Allies 3 | . . . . 3 . Largest Group 3 | . . . . 3 . Highest-Rated Group 48 | . . . . 48 . Highest-Rated Ally 16 | . . . . 16 . Initial Warlord ECA Mod 1 | . . . . . 1 Total Orders . | . . . . . . Ally Attacks 20 | . . . . 20 . Total Damage 284 | . . . . 284 . Kills 2 | . . . . 2 . Allies Corrupted . | . . . . . . Allies Melted . | . . . . . . Intel | -11 -10 -10 -8 -8 -8 ------- Run | Yrd Mat Sub Mat Gar Mat Active Infowar (turns) 1107 | 18 184 263 42 440 160 Terrain 640 | . . . 40 440 160 Seismic 668 | 18 184 263 42 161 . Robot Analysis Total . | . . . . . . Derelict Logs Recovered . | . . . . . . Drone Launches . | . . . . . . Drone Recoveries . | . . . . . . Exploration | -11 -10 -10 -8 -8 -8 ------------- Run | Yrd Mat Sub Mat Gar Mat Turns Passed 1804 | 117 184 263 42 969 229 Spaces Moved 995 | 68 99 187 40 441 160 Core 80 | 28 . . . 52 . Treads . | . . . . . . Legs . | . . . . . . Wheels 798 | 40 99 187 40 389 43 Hover . | . . . . . . Flight 117 | . . . . . 117 Fastest Speed 37 | 50 90 90 90 90 37 Average Speed 96 | 79 90 90 90 117 60 Slowest Speed 250 | 100 90 90 90 250 120 Overloaded Moves . | . . . . . . Propulsion Burnouts . | . . . . . . Robots Hopped . | . . . . . . Potential Cave-ins . | . . . . . . Cave-ins Triggered . | . . . . . . Exploration Rate (%) 18 | 4 24 18 6 44 17 Regions Visited 5 Branch Regions 1 Pre-discovered Areas . | . . . . . . Known Exits Taken 1 | . . . 1 . . Unknown Exits Taken 3 | 1 1 1 . . . Scrap Searched . | . . . . . . Spaces Dug 2 | . . . . . 2 Terrain Destroyed 2 | . . . . . 2 Melee 2 | . . . . . 2 Projectile . | . . . . . . AOE . | . . . . . . Terrain Rammed . | . . . . . . Walls Destroyed . | . . . . . . Machines Disabled . | . . . . . . Actions | -11 -10 -10 -8 -8 -8 --------- Run | Yrd Mat Sub Mat Gar Mat Total 1619 | 106 195 275 45 734 264 Wait 289 | 8 91 79 . 57 54 Move 991 | 67 98 186 40 440 160 Hop . | . . . . . . Pick Up 46 | 13 3 2 1 19 8 Fast Attach 5 | 1 . . . 1 3 Attach 34 | 5 . . 4 15 10 Detach 2 | . . . . . 2 Swap 6 | . . 1 . 3 2 Drop 20 | . 3 3 . 6 8 Fire 127 | 12 . 4 . 106 5 Melee 12 | . . . . . 12 Ram . | . . . . . . Kick . | . . . . . . Crush . | . . . . . . Escape Stasis 55 | . . . . 55 . Rewire 32 | . . . . 32 . Trap . | . . . . . . Miscellaneous . | . . . . . . Route ------- -11/Scrapyard -10/Materials (discovered 2 exits: [*Min] / [*Sub]) -10/Subcaves -8/Materials -8/Garrison (discovered 2 exits: *Mat x2) -8/Materials History --------- Turn | Location | Event 9 | -11/Scrapyard | Discovered new exit (range 15) 118 | -11/Scrapyard | Entered Materials 119 | -10/Materials | Met a group of wandering Federalists 266 | -10/Materials | Discovered new exit (range 8) 294 | -10/Materials | Discovered new exit (range 9) 300 | -10/Materials | Build established: Mutant 302 | -10/Materials | Entered Subcaves 302 | -10/Subcaves | Accompanied by 4 allies 303 | -10/Subcaves | Continued accompanying wandering Federalists (5) 414 | -10/Subcaves | A swath of the cavern ceiling suddenly collapsed 455 | -10/Subcaves | Shifting Twisted Machinery released Barrage Gun 461 | -10/Subcaves | Shifting Twisted Machinery released Sub. Monowheel 527 | -10/Subcaves | Discovered new exit (range 9) 543 | -10/Subcaves | Lost 3 allies 565 | -10/Subcaves | Entered Materials 565 | -8/Materials | Evolved 4 slots: Utility x4 607 | -8/Materials | Identified exit to Garrison 607 | -8/Materials | Entered Garrison 661 | -8/Garrison | Triggered checkpoint 717 | -8/Garrison | Triggered checkpoint 986 | -8/Garrison | Build established: Scavenger-Mutant 992 | -8/Garrison | Core integrity fell below 50% 1101 | -8/Garrison | Lost 3 parts (1n2u) 1237 | -8/Garrison | Learned Materials security intel 1240 | -8/Garrison | Discovered new exit (range 14) 1247 | -8/Garrison | Triggered checkpoint 1256 | -8/Garrison | Discovered new exit (range 5) 1357 | -8/Garrison | Triggered checkpoint 1396 | -8/Garrison | Core integrity fell below 20% 1444 | -8/Garrison | Lost 3 allies 1477 | -8/Garrison | Lost 6 parts (1p2n2u1w) 1576 | -8/Garrison | Entered Materials 1757 | -8/Materials | Build established: Mutant 1805 | -8/Materials | Destroyed by Y-45 Defender with Heavy Assault Rifle Last Messages --------------- 01781_ S-10 Pest system corrupted by crushing effect. 01781_ S-10 Pest destroyed. 01786_ Acquired 7 matter. 01786_ W-25 Informer sends out distress signal. 01786_ K-01 Serf collects debris. 01788_ Connecting with Terminal... >>Enumerate(Squads) Retrieving dispatch records... Found 23 active squads: 9x Security 3x Surveillance 5x Patrol 6x Transport 01791_ Acquired Reaction Control System. 01792_ K-01 Serf collects debris. 01801_ S-10 Pest destroyed. 01801_ Flight Unit destroyed. 01802_ K-01 Serf collects debris. 01804_ System corrupted: Heat flow error (+230). Map ----- +----------------------------------------------------+ | ?????????????????????????????????????????????????? | | ?????????????????????????????????????????????????? | | ?????????????????????????????????????????????????? | | ?????????????????????????????????????????????????? | | ??????#??????????????????????????????????????????? | | ?????????????????????????????????????????????????? | | ?????????????????????????????????????????????????? | | ??????????#??????????????????????????????????????? | | ???????????????????????????^^^???????????????????? | | ????????????####+###### ###^^^???????????????????? | | ????????#???# ?????????????????????? | | ??#??#??????# ? ???????????????????????? | | ????#???????# ??????? ?????????????????????? | | ????????????# #????????????????????????????????? | | ??##????????# #???#????????????????????????????? | | ?????#??????# #????????????????????????????????? | | ???????????## #????????????????#???????????????? | | ####?????##?# ############?????????????????????? | | !!#???????## ## #?????????????????????? | | /!!##??????## ## """" #??#??????????????????? | | #???##??# # """" #?????????????????????? | | ######### # """" #??#?????#????????????? | | ] T %kY=s !#?#???????????????????? | | #= l #?????????????????????? | | ############ #g"T" #?#???????????????????? | | ???????????#######u""" @ #?????????????????????? | | ???????????? ????#/#######+#?????????????????????? | | ??? ??????"???# #?????? ??????????????????????? | | ???????????????" # #?????????????????????????????? | | ?????????? ?????# #???????????????? ????????????? | | ?????????? ??????# #?????????????????????????????? | | ???"?????????????# #???#?????????????????????????? | | ?? "????????????? ??#???????????????????????????? | | ????????????? ? ? ????#?????????????????????????? | | ????? ???????????? ??????????????????????????????? | | ?????????????????? ??????????????????????????????? | | ??????????????????#??????????????????????????????? | | ??????????????????????#??????????????????????????? | | ??????????????#??????????????????????????????????? | | ?????????????????????????????????????????????????? | | ?????????????????????????????????????????????????? | | ?????????????????????????????????????????????????? | | ?????????????????????????????????????????????????? | | ?????????????????????????????????????????????????? | | ?????????????????????????????????????????????????? | | ?????????????????????????????????????????????????? | | ?????????????????????????????????????????????????? | | ?????????????????????????????????????????????????? | | ?????????????????????????????????????????????????? | | ?????????????????????????????????????????????????? | +----------------------------------------------------+ Best States ------------- Heat Dissipation 41 Energy Generation 14 Energy Capacity 265 Matter Stores 300 Matter Capacity 300 Sight Range 16 Terrain Scan Range 16 Terrain Scan Density 10 Armor Coverage 450 Evasion (%) 62 Defensive Hacking 10 Item Schematics ----------------- None Robot Schematics ------------------ None Fabricated ------------ Nothing Repaired ---------- Nothing Studied --------- None Alien Tech Used ----------------- None Achievements -------------- None Challenges ------------ None Game ------ Seed MiningFrostKinecellerator Manual? 0 Play Time 00:21:40 Cumulative 108.9 hours Start 2025.12.03 @ 13:44:59 End 2025.12.03 @ 14:05:40 Sessions 3 Manual Loads 0 Difficulty Rogue Special Mode None Game No. 158 Rogue 158 Adventurer 0 Explorer 0 Win Type - Total 1 Types 1/0/0/0/0/0/0/0/0/0 Lore% 59 Gallery% 54 Achievement% 41 Wizard Run 0 Options --------- Layout 2 ASCII 0 Keyboard 0 Movement Mouse Keybinds 0 Fullscreen 1 Font 16/SmallcapsGlow Map View 50x49 Zoom Use 7% Tactical HUD 1 Map Filters NONE Filters NONE Steam SD RUN: 1e263d09-abc8-41e5-b06b-7944c8a01622